fUST/lending_fUST_20240927
["ID","MTS","AMOUNT","RATE_DAILY","PERIOD"]
[339310210,1727445046516,-982.782626,0.00022739,7]
[339310212,1727445046526,-982.782626,0.00022739,7]
[339310215,1727445046537,-500.0,0.00022739,2]
[339310217,1727445046547,-840.03,0.00022739,2]
[339310219,1727445046559,-300.404,0.00022752,2]
[339310220,1727445046569,-3212.243,0.00022752,2]
[339310222,1727445046578,-41138.29500102,0.0002276,2]
[339310224,1727445046587,-124565.69250965,0.0002276,2]
[339310227,1727445046602,-14916.88040639,0.0002276,2]
[339310229,1727445046614,-82049.6343,0.0002276,2]
[339311663,1727445777287,3466.31459682,0.00014112,2]
[339311673,1727446172106,-150.0,0.00016,2]
[339311674,1727446172128,-300.0,0.00017161,2]
[339311675,1727446172149,-300.0,0.00017161,2]
[339311676,1727446172169,-231.4647935,0.00017161,2]
[339311677,1727446172190,-350.32942751,0.00017161,2]
[339311678,1727446172212,-400.0,0.00017161,2]
[339311679,1727446172235,-1723.30369042,0.00017162,2]
[339311747,1727446238674,-300.0,0.00017161,2]
[339311748,1727446238684,-23176.69630958,0.00017162,2]
[339311749,1727446238693,-166.666668,0.00017304,2]
[339311750,1727446238703,-3000.0,0.00017333,2]
[339311751,1727446238712,-166.666668,0.00017417,2]
[339311752,1727446238722,-166.666668,0.00017529,2]
[339311753,1727446238731,-1977.21314641,0.00017542,2]
[339311754,1727446238741,-166.666668,0.00017642,2]
[339311755,1727446238751,-166.666668,0.00017755,2]
[339311756,1727446238760,-166.666668,0.00017867,2]
[339311757,1727446238770,-166.666668,0.0001798,2]
[339311758,1727446238780,-166.666668,0.00018093,2]
[339311759,1727446238789,-166.666668,0.00018206,2]
[339311760,1727446238799,-200.219911,0.00018221,2]
[339311761,1727446238808,-420.0,0.00018877,2]
[339311762,1727446238818,-164.062812,0.00018904,2]
[339311763,1727446238827,-432.34138243,0.00019,2]
[339311764,1727446238839,-5000.0,0.00019,2]
[339311765,1727446238849,-26777.72604128,0.00019078,2]
[339311766,1727446238859,-500.0,0.00019157,2]
[339311767,1727446238869,-500.0,0.00019157,2]
[339311768,1727446238879,-500.0,0.00019157,2]
[339311769,1727446238888,-500.0,0.00019157,2]
[339311770,1727446238898,-171.74768962,0.00019157,2]
[339311771,1727446238906,-444.53036672,0.00019157,2]
[339311772,1727446238916,-172.34555098,0.00019157,2]
[339311773,1727446238926,-467.42600099,0.00019157,2]
[339311774,1727446238936,-500.0,0.00019157,2]
[339311775,1727446238946,-500.0,0.00019157,2]
[339311776,1727446238956,-271.74768962,0.00019157,2]
[339311777,1727446238965,-500.0,0.00019157,2]
[339311778,1727446238974,-62678.4270233,0.00019158,3]
[339311779,1727446238984,-5887.54257582,0.00019158,3]
[339311780,1727446238993,-734.85056281,0.00019158,2]
[339311781,1727446239004,-125356.854047,0.00019168,3]
[339311782,1727446239013,-11775.0851516,0.00019168,3]
[339311783,1727446239022,-506.8130447,0.00019178,2]
[339311784,1727446239031,-500.0,0.00019178,2]
[339311785,1727446239040,-383.07136475,0.00019178,2]
[339311786,1727446239050,-599.31,0.00019178,2]
[339311787,1727446239059,-500.0,0.00019178,2]
[339311788,1727446239069,-500.0,0.00019178,2]
[339311789,1727446239078,-533.29018558,0.00019178,2]
[339311790,1727446239089,-504.24180738,0.00019178,2]
[339311791,1727446239098,-500.0,0.00019178,2]
[339311792,1727446239107,-638.69610085,0.00019178,2]
[339311793,1727446239116,-500.0,0.00019178,2]
[339311794,1727446239125,-500.0,0.00019178,2]
[339311795,1727446239134,-630.12290026,0.00019178,2]
[339311796,1727446239143,-500.0,0.00019178,2]
[339311797,1727446239152,-382.67381951,0.00019178,2]
[339311798,1727446239161,-500.0,0.00019178,2]
[339311799,1727446239171,-500.0,0.00019178,2]
[339311800,1727446239180,-500.0,0.00019178,2]
[339311801,1727446239190,-500.0,0.00019178,2]
[339311802,1727446239199,-545.23,0.00019178,2]
[339311803,1727446239208,-500.0,0.00019178,2]
[339311804,1727446239218,-701.85,0.00019178,2]
[339311805,1727446239227,-500.0,0.00019178,2]
[339311806,1727446239236,-355.65019265,0.00019178,2]
[339311807,1727446239245,-500.0,0.00019178,2]
[339311808,1727446239254,-500.0,0.00019178,2]
[339311809,1727446239264,-500.0,0.00019178,2]
[339311810,1727446239273,-368.64450648,0.00019178,2]
[339311811,1727446239282,-500.0,0.00019178,2]
[339311812,1727446239291,-506.6433691,0.00019178,2]
[339311813,1727446239300,-500.0,0.00019178,2]
[339311814,1727446239308,-500.0,0.00019178,2]
[339311815,1727446239317,-500.0,0.00019178,2]
[339311816,1727446239327,-503.08683379,0.00019178,2]
[339311817,1727446239338,-500.0,0.00019178,2]
[339311818,1727446239348,-503.05146831,0.00019178,2]
[339311819,1727446239357,-500.0,0.00019178,2]
[339311820,1727446239367,-500.0,0.00019178,2]
[339311821,1727446239376,-500.0,0.00019178,2]
[339311822,1727446239386,-500.0,0.00019178,2]
[339311823,1727446239395,-500.0,0.00019178,2]
[339311824,1727446239404,-500.0,0.00019178,2]
[339311825,1727446239413,-500.0,0.00019178,2]
[339311826,1727446239423,-259.09,0.00019178,2]
[339311827,1727446239432,-500.5314839,0.00019178,2]
[339311828,1727446239441,-500.0,0.00019178,2]
[339311829,1727446239450,-500.0,0.00019178,2]
[339311830,1727446239460,-500.0,0.00019178,2]
[339311831,1727446239470,-500.0,0.00019178,2]
[339311832,1727446239479,-504.25399332,0.00019178,2]
[339311833,1727446239488,-500.0,0.00019178,2]
[339311834,1727446239497,-500.0,0.00019178,2]
[339311835,1727446239506,-500.0,0.00019178,2]
[339311836,1727446239516,-199.72,0.00019178,2]
[339311837,1727446239526,-1000.0,0.00019178,2]
[339311838,1727446239535,-625.55,0.00019178,2]
[339311839,1727446239544,-220.80373621,0.00019178,2]
[339311840,1727446239554,-500.0,0.00019178,2]
[339311841,1727446239563,-501.09186147,0.00019178,2]
[339311842,1727446239572,-500.0,0.00019178,2]
[339311843,1727446239584,-500.0,0.00019178,2]
[339311844,1727446239593,-500.0,0.00019178,2]
[339311845,1727446239602,-839.38,0.00019178,2]
[339311846,1727446239611,-500.0,0.00019178,2]
[339311847,1727446239621,-500.0,0.00019178,2]
[339311848,1727446239630,-179.73,0.00019178,2]
[339311849,1727446239639,-500.0,0.00019178,2]
[339311850,1727446239649,-500.0,0.00019178,2]
[339311851,1727446239658,-1111.67,0.00019178,2]
[339311852,1727446239668,-200.0,0.00019178,2]
[339311853,1727446239677,-500.0,0.00019178,2]
[339311855,1727446239687,-500.0,0.00019178,2]
[339311856,1727446239696,-500.0,0.00019178,2]
[339311857,1727446239706,-500.0,0.00019178,2]
[339311858,1727446239715,-500.0,0.00019178,2]
[339311859,1727446239725,-500.0,0.00019178,2]
[339311860,1727446239734,-510.55708519,0.00019178,2]
[339311861,1727446239744,-500.0,0.00019178,2]
[339311862,1727446239753,-500.0,0.00019178,2]
[339311863,1727446239762,-500.0,0.00019178,2]
[339311864,1727446239772,-500.0,0.00019178,2]
[339311865,1727446239781,-500.0,0.00019178,2]
[339311866,1727446239791,-500.0,0.00019178,2]
[339311867,1727446239800,-500.0,0.00019178,2]
[339311868,1727446239809,-500.0,0.00019178,2]
[339311869,1727446239819,-410.06289939,0.00019178,2]
[339311870,1727446239828,-587.28,0.00019178,2]
[339311871,1727446239841,-500.0,0.00019178,2]
[339311872,1727446239854,-505.23754177,0.00019178,2]
[339311873,1727446239868,-773.28,0.00019178,2]
[339311874,1727446239878,-500.0,0.00019178,2]
[339311875,1727446239888,-500.0,0.00019178,2]
[339311876,1727446239899,-500.0,0.00019178,2]
[339311877,1727446239910,-500.0,0.00019178,2]
[339311878,1727446239919,-500.0,0.00019178,2]
[339311879,1727446239928,-510.47063791,0.00019178,2]
[339311880,1727446239939,-500.0,0.00019178,2]
[339311881,1727446239948,-500.0,0.00019178,2]
[339311882,1727446239957,-500.0,0.00019178,2]
[339311883,1727446239966,-640.69,0.00019178,2]
[339311884,1727446239976,-500.0,0.00019178,2]
[339311885,1727446239985,-500.0,0.00019178,2]
[339311886,1727446239995,-614.41819999,0.00019178,2]
[339311887,1727446240004,-987.09,0.00019178,2]
[339311888,1727446240013,-500.0,0.00019178,2]
[339311889,1727446240022,-4751.17274609,0.00019178,2]
[339311890,1727446240032,-500.0,0.00019178,2]
[339311891,1727446240041,-359.65120005,0.00019178,2]
[339311892,1727446240051,-500.0,0.00019178,2]
[339311893,1727446240059,-500.0,0.00019178,2]
[339311894,1727446240068,-9003.51,0.00019178,2]
[339311895,1727446240078,-500.0,0.00019178,2]
[339311896,1727446240090,-1673.69,0.00019178,2]
[339311898,1727446240099,-500.0,0.00019178,2]
[339311899,1727446240109,-2745.17,0.00019178,2]
[339311901,1727446240118,-500.0,0.00019178,2]
[339311903,1727446240127,-500.0,0.00019178,2]
[339311905,1727446240137,-162.091817,0.00019178,2]
[339311906,1727446240146,-162.713032,0.00019178,2]
[339311907,1727446240156,-62678.4270233,0.00019432,3]
[339311908,1727446240165,-5887.54257582,0.00019432,3]
[339311909,1727446240177,-500.0,0.00019441,2]
[339311910,1727446240187,-62678.4270233,0.00019442,3]
[339311911,1727446240197,-5887.54257582,0.00019442,3]
[339311912,1727446240207,-599.31,0.00019452,2]
[339311913,1727446240217,-500.0,0.00019452,2]
[339311914,1727446240226,-500.0,0.00019452,2]
[339311915,1727446240235,-500.0,0.00019452,2]
[339311916,1727446240245,-500.0,0.00019452,2]
[339311917,1727446240255,-545.23,0.00019452,2]
[339311918,1727446240265,-500.0,0.00019452,2]
[339311919,1727446240274,-701.85,0.00019452,2]
[339311920,1727446240284,-525.11117407,0.00019452,2]
[339311921,1727446240413,-500.0,0.00019452,2]
[339311922,1727446240423,-500.0,0.00019452,2]
[339311923,1727446240432,-150.16428715,0.00019452,2]
[339311924,1727446240441,-500.0,0.00019452,2]
[339311925,1727446240451,-500.0,0.00019452,2]
[339311926,1727446240460,-625.55,0.00019452,2]
[339311927,1727446240468,-518.02367335,0.00019452,2]
[339311928,1727446240478,-839.38,0.00019452,2]
[339311929,1727446240488,-500.0,0.00019452,2]
[339311930,1727446240497,-1111.67,0.00019452,2]
[339311931,1727446240506,-200.0,0.00019452,2]
[339311932,1727446240515,-366.95472982,0.00019452,2]
[339311933,1727446240525,-500.0,0.00019452,2]
[339311934,1727446240535,-500.0,0.00019452,2]
[339311935,1727446240544,-319.21002844,0.00019452,2]
[339311936,1727446240553,-500.0,0.00019452,2]
[339311937,1727446240563,-500.0,0.00019452,2]
[339311938,1727446240572,-773.28,0.00019452,2]
[339311939,1727446240585,-640.69,0.00019452,2]
[339311940,1727446240595,-500.0,0.00019452,2]
[339311941,1727446240604,-500.0,0.00019452,2]
[339311942,1727446240614,-987.09,0.00019452,2]
[339311943,1727446240623,-500.0,0.00019452,2]
[339311944,1727446240632,-500.0,0.00019452,2]
[339311945,1727446240642,-500.0,0.00019452,2]
[339311946,1727446240651,-9003.51,0.00019452,2]
[339311947,1727446240660,-1673.69,0.00019452,2]
[339311948,1727446240670,-500.0,0.00019452,2]
[339311949,1727446240680,-2745.17,0.00019452,2]
[339311950,1727446240689,-302.83364127,0.00019452,2]
[339311951,1727446240700,-500.0,0.00019452,2]
[339311952,1727446240709,-1000.0,0.00019615,2]
[339311953,1727446240719,-5887.54257582,0.00019716,3]
[339311954,1727446240728,-599.31,0.00019726,2]
[339311955,1727446240737,-500.0,0.00019726,2]
[339311956,1727446240747,-500.0,0.00019726,2]
[339311957,1727446240756,-500.0,0.00019726,2]
[339311958,1727446240765,-500.0,0.00019726,2]
[339311959,1727446240774,-545.23,0.00019726,2]
[339311960,1727446240785,-500.0,0.00019726,2]
[339311961,1727446240794,-701.85,0.00019726,2]
[339311962,1727446240804,-500.0,0.00019726,2]
[339311963,1727446240813,-500.0,0.00019726,2]
[339311964,1727446240823,-500.0,0.00019726,2]
[339311965,1727446240832,-625.55,0.00019726,2]
[339311966,1727446240852,-839.38,0.00019726,2]
[339311967,1727446240865,-500.0,0.00019726,2]
[339311968,1727446240875,-1111.67,0.00019726,2]
[339311969,1727446240885,-200.0,0.00019726,2]
[339311970,1727446240895,-175.70914058,0.00019726,2]
[339311971,1727446240983,-324.29085942,0.00019726,2]
[339311972,1727446240994,-500.0,0.00019726,2]
[339311973,1727446241003,-500.0,0.00019726,2]
[339311974,1727446241013,-773.28,0.00019726,2]
[339311975,1727446241022,-640.69,0.00019726,2]
[339311976,1727446241031,-500.0,0.00019726,2]
[339311977,1727446241041,-500.0,0.00019726,2]
[339311978,1727446241051,-987.09,0.00019726,2]
[339311979,1727446241061,-500.0,0.00019726,2]
[339311980,1727446241071,-500.0,0.00019726,2]
[339311981,1727446241081,-487.52746367,0.00019726,2]
[339311982,1727446241093,-9003.51,0.00019726,2]
[339311983,1727446241102,-1673.69,0.00019726,2]
[339311984,1727446241111,-500.0,0.00019726,2]
[339311985,1727446241121,-2745.17,0.00019726,2]
[339311986,1727446241130,-5887.54257582,0.00019972,3]
[339311987,1727446241140,-501.86122269,0.00019973,2]
[339311988,1727446241149,-5887.54257582,0.0001999,3]
[339311989,1727446241160,-153.0,0.00019991,2]
[339311990,1727446241169,-153.0,0.00019991,2]
[339311991,1727446241180,-153.0,0.00019991,2]
[339311992,1727446241190,-153.0,0.00019991,2]
[339311993,1727446241200,-153.0,0.00019991,2]
[339311994,1727446241210,-153.0,0.00019991,2]
[339311995,1727446241220,-153.0,0.00019991,2]
[339311996,1727446241229,-153.0,0.00019991,2]
[339311997,1727446241239,-153.0,0.00019991,2]
[339311998,1727446241248,-153.0,0.00019991,2]
[339311999,1727446241257,-153.0,0.00019991,2]
[339312000,1727446241266,-153.0,0.00019991,2]
[339312001,1727446241278,-153.0,0.00019991,2]
[339312002,1727446241288,-153.0,0.00019991,2]
[339312003,1727446241298,-153.0,0.00019991,2]
[339312004,1727446241307,-153.0,0.00019991,2]
[339312005,1727446241317,-153.0,0.00019991,2]
[339312006,1727446241327,-153.0,0.00019991,2]
[339312007,1727446241340,-153.0,0.00019991,2]
[339312008,1727446241349,-153.0,0.00019991,2]
[339312009,1727446241359,-153.0,0.00019991,2]
[339312010,1727446241369,-153.0,0.00019993,2]
[339312011,1727446241379,-153.0,0.00019993,2]
[339312012,1727446241389,-153.0,0.00019993,2]
[339312013,1727446241398,-153.0,0.00019993,2]
[339312014,1727446241407,-153.0,0.00019993,2]
[339312015,1727446241417,-153.0,0.00019993,2]
[339312016,1727446241426,-153.0,0.00019993,2]
[339312017,1727446241435,-153.0,0.00019993,2]
[339312018,1727446241444,-153.0,0.00019993,2]
[339312019,1727446241454,-153.0,0.00019993,2]
[339312020,1727446241463,-153.0,0.00019993,2]
[339312021,1727446241477,-153.0,0.00019993,2]
[339312022,1727446241487,-153.0,0.00019993,2]
[339312023,1727446241496,-153.0,0.00019993,2]
[339312024,1727446241506,-153.0,0.00019993,2]
[339312025,1727446241515,-153.0,0.00019993,2]
[339312026,1727446241525,-153.0,0.00019993,2]
[339312027,1727446241535,-153.0,0.00019993,2]
[339312028,1727446241544,-153.0,0.00019993,2]
[339312029,1727446241554,-153.0,0.00019993,2]
[339312030,1727446241564,-153.0,0.00019993,2]
[339312031,1727446241573,-153.0,0.00019993,2]
[339312032,1727446241585,-153.0,0.00019993,2]
[339312033,1727446241595,-153.0,0.00019993,2]
[339312034,1727446241604,-153.0,0.00019993,2]
[339312035,1727446241614,-153.0,0.00019993,2]
[339312036,1727446241624,-153.0,0.00019993,2]
[339312037,1727446241634,-153.0,0.00019993,2]
[339312038,1727446241643,-153.0,0.00019993,2]
[339312039,1727446241653,-599.31,0.0002,2]
[339312040,1727446241662,-534.17375437,0.0002,2]
[339312041,1727446241672,-500.0,0.0002,2]
[339312042,1727446241682,-482.4761541,0.0002,2]
[339312043,1727446241691,-500.0,0.0002,2]
[339312044,1727446241701,-545.23,0.0002,2]
[339312045,1727446241710,-340.0,0.0002,2]
[339312046,1727446241720,-701.85,0.0002,2]
[339312047,1727446241730,-500.0,0.0002,2]
[339312048,1727446241740,-500.0,0.0002,2]
[339312049,1727446241750,-625.55,0.0002,2]
[339312050,1727446241759,-839.38,0.0002,2]
[339312051,1727446241769,-500.0,0.0002,2]
[339312052,1727446241779,-1111.67,0.0002,2]
[339312053,1727446241788,-200.0,0.0002,2]
[339312054,1727446241798,-500.0,0.0002,2]
[339312055,1727446241808,-500.0,0.0002,2]
[339312056,1727446241817,-773.28,0.0002,2]
[339312057,1727446241827,-640.69,0.0002,2]
[339312058,1727446241839,-500.0,0.0002,2]
[339312059,1727446241848,-987.09,0.0002,2]
[339312060,1727446241858,-500.0,0.0002,2]
[339312061,1727446241872,-500.0,0.0002,2]
[339312062,1727446241882,-9003.51,0.0002,2]
[339312063,1727446241892,-1673.69,0.0002,2]
[339312064,1727446241902,-500.0,0.0002,2]
[339312065,1727446241913,-2745.17,0.0002,2]
[339312066,1727446241927,-5887.54257582,0.00020253,3]
[339312067,1727446241939,-5887.54257582,0.00020263,3]
[339312068,1727446241949,-500.0,0.00020273,2]
[339312069,1727446241959,-500.84471371,0.00020273,2]
[339312070,1727446241969,-599.31,0.00020273,2]
[339312071,1727446241978,-500.0,0.00020273,2]
[339312072,1727446241990,-500.0,0.00020273,2]
[339312073,1727446242000,-545.23,0.00020273,2]
[339312074,1727446242009,-701.85,0.00020273,2]
[339312075,1727446242019,-500.0,0.00020273,2]
[339312076,1727446242029,-500.0,0.00020273,2]
[339312077,1727446242039,-625.55,0.00020273,2]
[339312078,1727446242048,-839.38,0.00020273,2]
[339312079,1727446242058,-500.0,0.00020273,2]
[339312080,1727446242067,-1111.67,0.00020273,2]
[339312081,1727446242078,-200.0,0.00020273,2]
[339312082,1727446242088,-500.0,0.00020273,2]
[339312083,1727446242098,-773.28,0.00020273,2]
[339312084,1727446242107,-640.69,0.00020273,2]
[339312085,1727446242117,-500.0,0.00020273,2]
[339312086,1727446242126,-987.09,0.00020273,2]
[339312087,1727446242136,-500.0,0.00020273,2]
[339312088,1727446242146,-500.0,0.00020273,2]
[339312089,1727446242156,-9003.51,0.00020273,2]
[339312090,1727446242165,-1673.69,0.00020273,2]
[339312091,1727446242175,-500.0,0.00020273,2]
[339312092,1727446242185,-2745.17,0.00020273,2]
[339312093,1727446242195,-599.31,0.00020547,2]
[339312094,1727446242205,-500.0,0.00020547,2]
[339312095,1727446242214,-545.23,0.00020547,2]
[339312096,1727446242224,-701.85,0.00020547,2]
[339312097,1727446242234,-500.0,0.00020547,2]
[339312098,1727446242244,-500.0,0.00020547,2]
[339312099,1727446242253,-625.55,0.00020547,2]
[339312100,1727446242263,-839.38,0.00020547,2]
[339312101,1727446242272,-500.0,0.00020547,2]
[339312102,1727446242282,-1111.67,0.00020547,2]
[339312103,1727446242292,-200.0,0.00020547,2]
[339312104,1727446242302,-500.0,0.00020547,2]
[339312105,1727446242311,-773.28,0.00020547,2]
[339312106,1727446242320,-640.69,0.00020547,2]
[339312107,1727446242330,-500.0,0.00020547,2]
[339312108,1727446242341,-987.09,0.00020547,2]
[339312109,1727446242351,-500.0,0.00020547,2]
[339312110,1727446242360,-500.0,0.00020547,2]
[339312111,1727446242370,-9003.51,0.00020547,2]
[339312112,1727446242379,-1673.69,0.00020547,2]
[339312113,1727446242389,-2745.17,0.00020547,2]
[339312114,1727446242399,-160.612766,0.000206,5]
[339312115,1727446242408,-488.32211835,0.00020716,2]
[339312116,1727446242418,-587.0,0.00020765,2]
[339312117,1727446242428,-150.112233,0.000208,2]
[339312118,1727446242438,-5887.54257582,0.00020811,3]
[339312119,1727446242448,-599.31,0.00020821,2]
[339312120,1727446242457,-500.0,0.00020821,2]
[339312121,1727446242467,-545.23,0.00020821,2]
[339312122,1727446242476,-701.85,0.00020821,2]
[339312123,1727446242486,-500.0,0.00020821,2]
[339312124,1727446242496,-500.0,0.00020821,2]
[339312125,1727446242506,-625.55,0.00020821,2]
[339312126,1727446242516,-839.38,0.00020821,2]
[339312127,1727446242526,-500.0,0.00020821,2]
[339312128,1727446242536,-1111.67,0.00020821,2]
[339312129,1727446242546,-200.0,0.00020821,2]
[339312130,1727446242555,-500.0,0.00020821,2]
[339312131,1727446242565,-773.28,0.00020821,2]
[339312132,1727446242574,-640.69,0.00020821,2]
[339312133,1727446242585,-500.0,0.00020821,2]
[339312134,1727446242594,-987.09,0.00020821,2]
[339312135,1727446242604,-500.0,0.00020821,2]
[339312136,1727446242614,-500.0,0.00020821,2]
[339312137,1727446242623,-9003.51,0.00020821,2]
[339312138,1727446242633,-1673.69,0.00020821,2]
[339312139,1727446242643,-2745.17,0.00020821,2]
[339312140,1727446242655,-5887.54257582,0.0002086,3]
[339312141,1727446242665,-3000.0,0.000209,2]
[339312142,1727446242675,-1977.21314634,0.0002095,2]
[339312143,1727446242685,-500.0,0.00020973,2]
[339312144,1727446242695,-500.0,0.00020973,2]
[339312145,1727446242705,-507.23894517,0.00020973,2]
[339312146,1727446242715,-11775.0851516,0.0002098,3]
[339312148,1727446242724,-160.0,0.00020989,2]
[339312150,1727446242734,-151.0,0.0002099,2]
[339312151,1727446242743,-151.0,0.0002099,2]
[339312152,1727446242753,-151.0,0.0002099,2]
[339312153,1727446242762,-186.368112,0.0002099,2]
[339312155,1727446242772,-186.368112,0.0002099,2]
[339312156,1727446242781,-327.519604,0.0002099,2]
[339312158,1727446242791,-327.519604,0.0002099,2]
[339312159,1727446242800,-151.0,0.0002099,2]
[339312160,1727446242810,-331.309958,0.0002099,2]
[339312161,1727446242819,-331.309958,0.0002099,2]
[339312162,1727446242839,-338.196896,0.0002099,2]
[339312163,1727446242850,-338.196896,0.0002099,2]
[339312164,1727446242861,-151.0,0.0002099,2]
[339312165,1727446242872,-326.193347,0.0002099,2]
[339312166,1727446242882,-326.193347,0.0002099,2]
[339312167,1727446242891,-11775.0851516,0.0002099,3]
[339312168,1727446242901,-151.0,0.0002099,2]
[339312169,1727446242911,-982.782626,0.0002099,2]
[339312170,1727446242920,-982.782626,0.0002099,2]
[339312171,1727446242930,-397.357405,0.0002099,2]
[339312172,1727446242939,-524.443743,0.0002099,2]
[339312174,1727446242949,-397.357405,0.0002099,2]
[339312176,1727446242959,-151.0,0.0002099,2]
[339312177,1727446242969,-524.443743,0.0002099,2]
[339312179,1727446242979,-151.0,0.0002099,2]
[339312180,1727446242990,-151.0,0.0002099,2]
[339312182,1727446243001,-292.51609,0.00021,2]
[339312184,1727446243011,-292.51609,0.00021,2]
[339312186,1727446243021,-1034.548488,0.00021,2]
[339312188,1727446243031,-500.0,0.00021,30]
[339312190,1727446243041,-500.0,0.00021,30]
[339312192,1727446243051,-500.0,0.00021,30]
[339312193,1727446243060,-500.0,0.00021,30]
[339312195,1727446243070,-500.0,0.00021,30]
[339312197,1727446243079,-500.0,0.00021,30]
[339312199,1727446243092,-500.0,0.00021,30]
[339312201,1727446243109,-500.0,0.00021,30]
[339312203,1727446243120,-500.0,0.00021,30]
[339312205,1727446243131,-879.63813938,0.00021,30]
[339312206,1727446243141,-500.0,0.00021,30]
[339312208,1727446243151,-500.0,0.00021,30]
[339312210,1727446243160,-500.0,0.00021,30]
[339312212,1727446243170,-500.0,0.00021,30]
[339312213,1727446243180,-500.0,0.00021,30]
[339312215,1727446243190,-500.0,0.00021,30]
[339312217,1727446243200,-734.20927279,0.00021,30]
[339312219,1727446243210,-500.0,0.00021,30]
[339312221,1727446243219,-510.77584455,0.00021,30]
[339312222,1727446243229,-500.0,0.00021,30]
[339312224,1727446243239,-882.01871696,0.00021,30]
[339312226,1727446243249,-501.66777924,0.00021,30]
[339312228,1727446243259,-500.0,0.00021,30]
[339312239,1727446243399,-500.0,0.00021,30]
[339312240,1727446243423,-500.0,0.00021,30]
[339312241,1727446243433,-500.0,0.00021,30]
[339312242,1727446243442,-500.0,0.00021,30]
[339312243,1727446243452,-500.0,0.00021,30]
[339312244,1727446243461,-500.0,0.00021,30]
[339312245,1727446243470,-500.0,0.00021,30]
[339312246,1727446243480,-500.0,0.00021,30]
[339312247,1727446243490,-500.0,0.00021,30]
[339312248,1727446243499,-500.0,0.00021,30]
[339312249,1727446243509,-500.0,0.00021,30]
[339312250,1727446243519,-500.0,0.00021,30]
[339312251,1727446243528,-787.37510182,0.00021,30]
[339312252,1727446243539,-800.0,0.00021,30]
[339312253,1727446243548,-800.0,0.00021,30]
[339312254,1727446243558,-800.0,0.00021,30]
[339312255,1727446243567,-800.0,0.00021,30]
[339312256,1727446243577,-800.0,0.00021,30]
[339312257,1727446243588,-800.0,0.00021,30]
[339312258,1727446243597,-800.0,0.00021,30]
[339312259,1727446243607,-500.0,0.00021,30]
[339312260,1727446243616,-500.0,0.00021,30]
[339312261,1727446243627,-800.0,0.00021,30]
[339312262,1727446243637,-800.0,0.00021,30]
[339312263,1727446243646,-500.0,0.00021,30]
[339312264,1727446243656,-500.0,0.00021,30]
[339312265,1727446243666,-800.0,0.00021,30]
[339312266,1727446243675,-500.0,0.00021,30]
[339312267,1727446243688,-800.0,0.00021,30]
[339312268,1727446243698,-500.0,0.00021,30]
[339312269,1727446243708,-800.0,0.00021,30]
[339312270,1727446243719,-500.0,0.00021,30]
[339312271,1727446243728,-800.0,0.00021,30]
[339312272,1727446243738,-1431.02725656,0.00021,30]